Workbook

Sheet الرئيسية

Sheet الفاتورة
B2: 1018
D5: فاتــــــــــــــورة : | E5: مشتريات
B8: رقم الفاتـــورة / | D8: =IF($E$5="مبيعات",MAX(مبيعات!H:H)+1,IF($E$5="آجل",MAX(آجل!H:H)+1,IF($E$5="مشتريات",$K$12,""))) -> 1014 | F8: التـــاريــــــخ / | G8: =TODAY() -> 2017-11-14 | I8: =OFFSET('تكويد الأصناف'!$D$6,,,COUNTA('تكويد الأصناف'!D:D)-1,) -> 103
B10: اسم الزبـــــون/ | F10: رقم الهـــاتف /
B12: العنـــــــــــوان / | I12: إذا كانت فاتورة مشتريات اكتب رقم الفاتورة هنا | K12: 1014
B15: الرقم | C15: كود الصنف | D15: اسم الصنف | E15: الكمية | F15: سعر الوحدة | G15: السعر الإجمالي | H15: رقم الفاتورة | I15: تاريخ الفاتورة | J15: اسم العميل | K15: العنوان | L15: الرصيد الموجود
B16: =IF($C$16="","",1) ->  | D16: =IF(C16="","",VLOOKUP(C16,'تكويد الأصناف'!$D$6:$H$10003,2,0)) ->  | F16: =IF(C16="","",VLOOKUP(C16,'تكويد الأصناف'!$D$6:$H$10003,4,0)) ->  | G16: =IF(F16="","",E16*F16) ->  | H16: =IF(C16="","",$D$8) ->  | I16: =IF(C16="","",$G$8) ->  | J16: =IF(C16="","",$D$10) ->  | K16: =IF(C16="","",$D$12) ->  | L16: =IFERROR(VLOOKUP(D16,'تكويد الأصناف'!E6:K10003,7,0),"") -> 
B17: =IF(D17="","",B16+1) ->  | D17: =IF(C17="","",VLOOKUP(C17,'تكويد الأصناف'!$D$6:$H$20,2,0)) ->  | F17: =IF(C17="","",VLOOKUP(C17,'تكويد الأصناف'!$D$6:$H$24,4,0)) ->  | G17: =IF(F17="","",E17*F17) ->  | L17: =IFERROR(VLOOKUP(D17,'تكويد الأصناف'!E7:K25,7,0),"") -> 
D18: =IF(C18="","",VLOOKUP(C18,'تكويد الأصناف'!$D$6:$H$20,2,0)) ->  | F18: =IF(C18="","",VLOOKUP(C18,'تكويد الأصناف'!$D$6:$H$24,4,0)) ->  | L18: =IFERROR(VLOOKUP(D18,'تكويد الأصناف'!E8:K26,7,0),"") -> 
D19: =IF(C19="","",VLOOKUP(C19,'تكويد الأصناف'!$D$6:$H$20,2,0)) ->  | F19: =IF(C19="","",VLOOKUP(C19,'تكويد الأصناف'!$D$6:$H$24,4,0)) ->  | L19: =IFERROR(VLOOKUP(D19,'تكويد الأصناف'!E9:K27,7,0),"") -> 
D20: =IF(C20="","",VLOOKUP(C20,'تكويد الأصناف'!$D$6:$H$24,2,0)) ->  | F20: =IF(C20="","",VLOOKUP(C20,'تكويد الأصناف'!$D$6:$H$24,4,0)) ->  | L20: =IFERROR(VLOOKUP(D20,'تكويد الأصناف'!E10:K28,7,0),"") -> 
D21: =IF(C21="","",VLOOKUP(C21,'تكويد الأصناف'!$D$6:$H$20,2,0)) ->  | F21: =IF(C21="","",VLOOKUP(C21,'تكويد الأصناف'!$D$6:$H$24,4,0)) ->  | L21: =IFERROR(VLOOKUP(D21,'تكويد الأصناف'!E11:K29,7,0),"") -> 
D22: =IF(C22="","",VLOOKUP(C22,'تكويد الأصناف'!$D$6:$H$20,2,0)) ->  | F22: =IF(C22="","",VLOOKUP(C22,'تكويد الأصناف'!$D$6:$H$24,4,0)) ->  | L22: =IFERROR(VLOOKUP(D22,'تكويد الأصناف'!E12:K30,7,0),"") -> 
D23: =IF(C23="","",VLOOKUP(C23,'تكويد الأصناف'!$D$6:$H$20,2,0)) ->  | F23: =IF(C23="","",VLOOKUP(C23,'تكويد الأصناف'!$D$6:$H$24,4,0)) ->  | L23: =IFERROR(VLOOKUP(D23,'تكويد الأصناف'!E13:K31,7,0),"") -> 
D24: =IF(C24="","",VLOOKUP(C24,'تكويد الأصناف'!$D$6:$H$20,2,0)) ->  | F24: =IF(C24="","",VLOOKUP(C24,'تكويد الأصناف'!$D$6:$H$24,4,0)) ->  | L24: =IFERROR(VLOOKUP(D24,'تكويد الأصناف'!E14:K32,7,0),"") -> 
D25: =IF(C25="","",VLOOKUP(C25,'تكويد الأصناف'!$D$6:$H$20,2,0)) ->  | F25: =IF(C25="","",VLOOKUP(C25,'تكويد الأصناف'!$D$6:$H$24,4,0)) ->  | L25: =IFERROR(VLOOKUP(D25,'تكويد الأصناف'!E15:K33,7,0),"") -> 
D26: =IF(C26="","",VLOOKUP(C26,'تكويد الأصناف'!$D$6:$H$20,2,0)) ->  | F26: =IF(C26="","",VLOOKUP(C26,'تكويد الأصناف'!$D$6:$H$24,4,0)) ->  | L26: =IFERROR(VLOOKUP(D26,'تكويد الأصناف'!E16:K34,7,0),"") -> 
D27: =IF(C27="","",VLOOKUP(C27,'تكويد الأصناف'!$D$6:$H$20,2,0)) ->  | F27: =IF(C27="","",VLOOKUP(C27,'تكويد الأصناف'!$D$6:$H$24,4,0)) ->  | L27: =IFERROR(VLOOKUP(D27,'تكويد الأصناف'!E17:K35,7,0),"") -> 
D28: =IF(C28="","",VLOOKUP(C28,'تكويد الأصناف'!$D$6:$H$20,2,0)) ->  | F28: =IF(C28="","",VLOOKUP(C28,'تكويد الأصناف'!$D$6:$H$24,4,0)) ->  | L28: =IFERROR(VLOOKUP(D28,'تكويد الأصناف'!E18:K36,7,0),"") -> 
D29: =IF(C29="","",VLOOKUP(C29,'تكويد الأصناف'!$D$6:$H$20,2,0)) ->  | F29: =IF(C29="","",VLOOKUP(C29,'تكويد الأصناف'!$D$6:$H$24,4,0)) ->  | L29: =IFERROR(VLOOKUP(D29,'تكويد الأصناف'!E19:K37,7,0),"") -> 
D30: =IF(C30="","",VLOOKUP(C30,'تكويد الأصناف'!$D$6:$H$20,2,0)) ->  | F30: =IF(C30="","",VLOOKUP(C30,'تكويد الأصناف'!$D$6:$H$24,4,0)) ->  | L30: =IFERROR(VLOOKUP(D30,'تكويد الأصناف'!E20:K38,7,0),"") -> 
B32: أجمالي الفاتورة : | D32: =SUM(G16:G30) -> 0 | J32: مبيعـــــات
J33: مشتريات
D34: =NumtoTxt(D32,"دينار","قرش") -> صفر | J34: آجــــــــل

Sheet بحث عن فاتورة
B2: 1018
D5: فاتــــــــــــــورة : | E5: مشتريات | I5: المطلوب عند الضغط على زر البحث يتم جدلب جميع بيانات الفاتورة ؟
B8: رقم الفاتـــورة / | D8: 105 | F8: التـــاريــــــخ / | G8: 2017-11-09
B10: اسم الزبـــــون/ | D10: fgfg | F10: رقم الهـــاتف /
B12: العنـــــــــــوان / | D12: gdfg
B15: الرقم | C15: كود الصنف | D15: الصنف | E15: الكمية | F15: سعر الوحدة | G15: السعر الإجمالي
B16: =IF($C$16="","",1) -> 1 | C16: 101 | D16: كراسة | E16: 100 | F16: 1 | G16: 100
B17: =IF(D17="","",B16+1) -> 2 | C17: 114 | D17: خطاط | E17: 6 | F17: 1.25 | G17: 7.5
B18: 3 | C18: 114 | D18: خطاط | E18: 10 | F18: 1.25 | G18: 12.5
B19: 4 | C19: 115 | D19: ورقة اسم | E19: 20 | F19: 0.5 | G19: 10
B20: 5 | C20: 114 | D20: خطاط | E20: 15 | F20: 1.25 | G20: 18.75
B21: 6 | C21: 115 | D21: ورقة اسم | E21: 25 | F21: 0.5 | G21: 12.5
B32: أجمالي الفاتورة : | D32: =SUM(G16:G30) -> 161.25
D34: =NumtoTxt(D32,"دينار","قرش") -> فقط مائة وواحد وستون دينار وخمسة وعشرون قرش

Sheet تكويد الأصناف
E2: تكويد الأصناف
B5: الرقم | C5: التاريخ | D5: كود الصنف | E5: اسم الصنف | F5: سعر الشراء | G5: سعر البيع | H5: رصيد أول المدة | I5: الكمية الواردة | J5: الكمية الصادرة | K5: الرصيد الحالي
B6: =IF(D6="","",1) -> 1 | C6: =TODAY() -> 2017-11-14 | D6: 101 | E6: كراسة | F6: 0.75 | G6: 1 | H6: 1000 | I6: =SUMIF(مشتريات!$D:$D,'تكويد الأصناف'!E6,مشتريات!$E:$E) -> 250 | J6: =SUMIF(مبيعات!$D:$D,'تكويد الأصناف'!E6,مبيعات!$E:$E)+SUMIF(آجل!$D:$D,'تكويد الأصناف'!E6,آجل!$E:$E) -> 434 | K6: =H6+SUMIF(مشتريات!$D:$D,'تكويد الأصناف'!E6,مشتريات!$E:$E)-SUMIF(مبيعات!$D:$D,'تكويد الأصناف'!E6,مبيعات!$E:$E)-SUMIF(آجل!$D:$D,'تكويد الأصناف'!E6,آجل!$E:$E) -> 816
B7: =IF(D7="","",B6+1) -> 2 | C7: 2017-11-14 | D7: 102 | E7: كتاب الهدف | F7: 12 | G7: 12.5 | H7: 500 | I7: =SUMIF(مشتريات!$D:$D,'تكويد الأصناف'!E7,مشتريات!$E:$E) -> 0 | J7: =SUMIF(مبيعات!$D:$D,'تكويد الأصناف'!E7,مبيعات!$E:$E)+SUMIF(آجل!$D:$D,'تكويد الأصناف'!E7,آجل!$E:$E) -> 33 | K7: =H7+SUMIF(مشتريات!$D:$D,'تكويد الأصناف'!E7,مشتريات!$E:$E)-SUMIF(مبيعات!$D:$D,'تكويد الأصناف'!E7,مبيعات!$E:$E)-SUMIF(آجل!$D:$D,'تكويد الأصناف'!E7,آجل!$E:$E) -> 467
B8: 3 | C8: 2017-11-14 | D8: 103 | E8: حقيبة باربي | F8: 25 | G8: 26.5 | H8: 200 | I8: =SUMIF(مشتريات!$D:$D,'تكويد الأصناف'!E8,مشتريات!$E:$E) -> 0 | J8: =SUMIF(مبيعات!$D:$D,'تكويد الأصناف'!E8,مبيعات!$E:$E)+SUMIF(آجل!$D:$D,'تكويد الأصناف'!E8,آجل!$E:$E) -> 16 | K8: =H8+SUMIF(مشتريات!$D:$D,'تكويد الأصناف'!E8,مشتريات!$E:$E)-SUMIF(مبيعات!$D:$D,'تكويد الأصناف'!E8,مبيعات!$E:$E)-SUMIF(آجل!$D:$D,'تكويد الأصناف'!E8,آجل!$E:$E) -> 184
B9: 4 | C9: 2017-11-14 | D9: 104 | E9: حقيبة فلة | F9: 35 | G9: 38 | H9: 150 | I9: =SUMIF(مشتريات!$D:$D,'تكويد الأصناف'!E9,مشتريات!$E:$E) -> 0 | J9: =SUMIF(مبيعات!$D:$D,'تكويد الأصناف'!E9,مبيعات!$E:$E)+SUMIF(آجل!$D:$D,'تكويد الأصناف'!E9,آجل!$E:$E) -> 66 | K9: =H9+SUMIF(مشتريات!$D:$D,'تكويد الأصناف'!E9,مشتريات!$E:$E)-SUMIF(مبيعات!$D:$D,'تكويد الأصناف'!E9,مبيعات!$E:$E)-SUMIF(آجل!$D:$D,'تكويد الأصناف'!E9,آجل!$E:$E) -> 84
B10: 5 | C10: 2017-11-14 | D10: 105 | E10: علبة أدوات | F10: 3.5 | G10: 4.75 | H10: 300 | I10: =SUMIF(مشتريات!$D:$D,'تكويد الأصناف'!E10,مشتريات!$E:$E) -> 0 | J10: =SUMIF(مبيعات!$D:$D,'تكويد الأصناف'!E10,مبيعات!$E:$E)+SUMIF(آجل!$D:$D,'تكويد الأصناف'!E10,آجل!$E:$E) -> 15 | K10: =H10+SUMIF(مشتريات!$D:$D,'تكويد الأصناف'!E10,مشتريات!$E:$E)-SUMIF(مبيعات!$D:$D,'تكويد الأصناف'!E10,مبيعات!$E:$E)-SUMIF(آجل!$D:$D,'تكويد الأصناف'!E10,آجل!$E:$E) -> 285
B11: 6 | C11: 2017-11-14 | D11: 106 | E11: قلم حبر | F11: 0.35 | G11: 0.75 | H11: 1000 | I11: =SUMIF(مشتريات!$D:$D,'تكويد الأصناف'!E11,مشتريات!$E:$E) -> 0 | J11: =SUMIF(مبيعات!$D:$D,'تكويد الأصناف'!E11,مبيعات!$E:$E)+SUMIF(آجل!$D:$D,'تكويد الأصناف'!E11,آجل!$E:$E) -> 68 | K11: =H11+SUMIF(مشتريات!$D:$D,'تكويد الأصناف'!E11,مشتريات!$E:$E)-SUMIF(مبيعات!$D:$D,'تكويد الأصناف'!E11,مبيعات!$E:$E)-SUMIF(آجل!$D:$D,'تكويد الأصناف'!E11,آجل!$E:$E) -> 932
B12: 7 | C12: 2017-11-14 | D12: 107 | E12: قلم رصاص | F12: 0.4 | G12: 0.5 | H12: 600 | I12: =SUMIF(مشتريات!$D:$D,'تكويد الأصناف'!E12,مشتريات!$E:$E) -> 0 | J12: =SUMIF(مبيعات!$D:$D,'تكويد الأصناف'!E12,مبيعات!$E:$E)+SUMIF(آجل!$D:$D,'تكويد الأصناف'!E12,آجل!$E:$E) -> 74 | K12: =H12+SUMIF(مشتريات!$D:$D,'تكويد الأصناف'!E12,مشتريات!$E:$E)-SUMIF(مبيعات!$D:$D,'تكويد الأصناف'!E12,مبيعات!$E:$E)-SUMIF(آجل!$D:$D,'تكويد الأصناف'!E12,آجل!$E:$E) -> 526
B13: 8 | C13: 2017-11-14 | D13: 108 | E13: ورق سحب | F13: 25 | G13: 28 | H13: 150 | I13: =SUMIF(مشتريات!$D:$D,'تكويد الأصناف'!E13,مشتريات!$E:$E) -> 0 | J13: =SUMIF(مبيعات!$D:$D,'تكويد الأصناف'!E13,مبيعات!$E:$E)+SUMIF(آجل!$D:$D,'تكويد الأصناف'!E13,آجل!$E:$E) -> 5 | K13: =H13+SUMIF(مشتريات!$D:$D,'تكويد الأصناف'!E13,مشتريات!$E:$E)-SUMIF(مبيعات!$D:$D,'تكويد الأصناف'!E13,مبيعات!$E:$E)-SUMIF(آجل!$D:$D,'تكويد الأصناف'!E13,آجل!$E:$E) -> 145
B14: 9 | C14: 2017-11-14 | D14: 109 | E14: دباسة | F14: 7 | G14: 7.5 | H14: 25 | I14: =SUMIF(مشتريات!$D:$D,'تكويد الأصناف'!E14,مشتريات!$E:$E) -> 0 | J14: =SUMIF(مبيعات!$D:$D,'تكويد الأصناف'!E14,مبيعات!$E:$E)+SUMIF(آجل!$D:$D,'تكويد الأصناف'!E14,آجل!$E:$E) -> 0 | K14: =H14+SUMIF(مشتريات!$D:$D,'تكويد الأصناف'!E14,مشتريات!$E:$E)-SUMIF(مبيعات!$D:$D,'تكويد الأصناف'!E14,مبيعات!$E:$E)-SUMIF(آجل!$D:$D,'تكويد الأصناف'!E14,آجل!$E:$E) -> 25
B15: 10 | C15: 2017-11-14 | D15: 110 | E15: علف دباسة | F15: 2 | G15: 3 | H15: 100 | I15: =SUMIF(مشتريات!$D:$D,'تكويد الأصناف'!E15,مشتريات!$E:$E) -> 0 | J15: =SUMIF(مبيعات!$D:$D,'تكويد الأصناف'!E15,مبيعات!$E:$E)+SUMIF(آجل!$D:$D,'تكويد الأصناف'!E15,آجل!$E:$E) -> 0 | K15: =H15+SUMIF(مشتريات!$D:$D,'تكويد الأصناف'!E15,مشتريات!$E:$E)-SUMIF(مبيعات!$D:$D,'تكويد الأصناف'!E15,مبيعات!$E:$E)-SUMIF(آجل!$D:$D,'تكويد الأصناف'!E15,آجل!$E:$E) -> 100
B16: 11 | C16: 2017-11-14 | D16: 111 | E16: ملف | F16: 0.25 | G16: 0.5 | H16: 1000 | I16: =SUMIF(مشتريات!$D:$D,'تكويد الأصناف'!E16,مشتريات!$E:$E) -> 0 | J16: =SUMIF(مبيعات!$D:$D,'تكويد الأصناف'!E16,مبيعات!$E:$E)+SUMIF(آجل!$D:$D,'تكويد الأصناف'!E16,آجل!$E:$E) -> 0 | K16: =H16+SUMIF(مشتريات!$D:$D,'تكويد الأصناف'!E16,مشتريات!$E:$E)-SUMIF(مبيعات!$D:$D,'تكويد الأصناف'!E16,مبيعات!$E:$E)-SUMIF(آجل!$D:$D,'تكويد الأصناف'!E16,آجل!$E:$E) -> 1000
B17: 12 | C17: 2017-11-14 | D17: 112 | E17: حبر طابعة | F17: 35 | G17: 37 | H17: 20 | I17: =SUMIF(مشتريات!$D:$D,'تكويد الأصناف'!E17,مشتريات!$E:$E) -> 0 | J17: =SUMIF(مبيعات!$D:$D,'تكويد الأصناف'!E17,مبيعات!$E:$E)+SUMIF(آجل!$D:$D,'تكويد الأصناف'!E17,آجل!$E:$E) -> 0 | K17: =H17+SUMIF(مشتريات!$D:$D,'تكويد الأصناف'!E17,مشتريات!$E:$E)-SUMIF(مبيعات!$D:$D,'تكويد الأصناف'!E17,مبيعات!$E:$E)-SUMIF(آجل!$D:$D,'تكويد الأصناف'!E17,آجل!$E:$E) -> 20
B18: 13 | C18: 2017-11-14 | D18: 113 | E18: كربون | F18: 1.5 | G18: 2.25 | H18: 15 | I18: =SUMIF(مشتريات!$D:$D,'تكويد الأصناف'!E18,مشتريات!$E:$E) -> 0 | J18: =SUMIF(مبيعات!$D:$D,'تكويد الأصناف'!E18,مبيعات!$E:$E)+SUMIF(آجل!$D:$D,'تكويد الأصناف'!E18,آجل!$E:$E) -> 0 | K18: =H18+SUMIF(مشتريات!$D:$D,'تكويد الأصناف'!E18,مشتريات!$E:$E)-SUMIF(مبيعات!$D:$D,'تكويد الأصناف'!E18,مبيعات!$E:$E)-SUMIF(آجل!$D:$D,'تكويد الأصناف'!E18,آجل!$E:$E) -> 15
B19: 14 | C19: 2017-11-14 | D19: 114 | E19: خطاط | F19: 1 | G19: 1.25 | H19: 50 | I19: =SUMIF(مشتريات!$D:$D,'تكويد الأصناف'!E19,مشتريات!$E:$E) -> 31 | J19: =SUMIF(مبيعات!$D:$D,'تكويد الأصناف'!E19,مبيعات!$E:$E)+SUMIF(آجل!$D:$D,'تكويد الأصناف'!E19,آجل!$E:$E) -> 2 | K19: =H19+SUMIF(مشتريات!$D:$D,'تكويد الأصناف'!E19,مشتريات!$E:$E)-SUMIF(مبيعات!$D:$D,'تكويد الأصناف'!E19,مبيعات!$E:$E)-SUMIF(آجل!$D:$D,'تكويد الأصناف'!E19,آجل!$E:$E) -> 79
B20: 15 | C20: 2017-11-14 | D20: 115 | E20: ورقة اسم | F20: 0.25 | G20: 0.5 | H20: 100 | I20: =SUMIF(مشتريات!$D:$D,'تكويد الأصناف'!E20,مشتريات!$E:$E) -> 45 | J20: =SUMIF(مبيعات!$D:$D,'تكويد الأصناف'!E20,مبيعات!$E:$E)+SUMIF(آجل!$D:$D,'تكويد الأصناف'!E20,آجل!$E:$E) -> 25 | K20: =H20+SUMIF(مشتريات!$D:$D,'تكويد الأصناف'!E20,مشتريات!$E:$E)-SUMIF(مبيعات!$D:$D,'تكويد الأصناف'!E20,مبيعات!$E:$E)-SUMIF(آجل!$D:$D,'تكويد الأصناف'!E20,آجل!$E:$E) -> 120
B21: 16 | C21: 2017-11-14 | D21: 116 | E21: حقيبة 111 | F21: 25 | G21: 28 | H21: 154 | I21: =SUMIF(مشتريات!$D:$D,'تكويد الأصناف'!E21,مشتريات!$E:$E) -> 0 | J21: =SUMIF(مبيعات!$D:$D,'تكويد الأصناف'!E21,مبيعات!$E:$E)+SUMIF(آجل!$D:$D,'تكويد الأصناف'!E21,آجل!$E:$E) -> 2 | K21: =H21+SUMIF(مشتريات!$D:$D,'تكويد الأصناف'!E21,مشتريات!$E:$E)-SUMIF(مبيعات!$D:$D,'تكويد الأصناف'!E21,مبيعات!$E:$E)-SUMIF(آجل!$D:$D,'تكويد الأصناف'!E21,آجل!$E:$E) -> 152
B22: 17 | C22: 2017-11-14 | D22: 117 | E22: دباسة مسدس | F22: 15 | G22: 18 | H22: 150 | I22: =SUMIF(مشتريات!$D:$D,'تكويد الأصناف'!E22,مشتريات!$E:$E) -> 0 | J22: =SUMIF(مبيعات!$D:$D,'تكويد الأصناف'!E22,مبيعات!$E:$E)+SUMIF(آجل!$D:$D,'تكويد الأصناف'!E22,آجل!$E:$E) -> 0 | K22: =H22+SUMIF(مشتريات!$D:$D,'تكويد الأصناف'!E22,مشتريات!$E:$E)-SUMIF(مبيعات!$D:$D,'تكويد الأصناف'!E22,مبيعات!$E:$E)-SUMIF(آجل!$D:$D,'تكويد الأصناف'!E22,آجل!$E:$E) -> 150
B23: 18 | C23: =TODAY() -> 2017-11-14 | D23: 118 | E23: حشو دباسة | F23: 14 | G23: 16 | H23: 145 | I23: =SUMIF(مشتريات!$D:$D,'تكويد الأصناف'!E23,مشتريات!$E:$E) -> 0 | J23: =SUMIF(مبيعات!$D:$D,'تكويد الأصناف'!E23,مبيعات!$E:$E)+SUMIF(آجل!$D:$D,'تكويد الأصناف'!E23,آجل!$E:$E) -> 50 | K23: =H23+SUMIF(مشتريات!$D:$D,'تكويد الأصناف'!E23,مشتريات!$E:$E)-SUMIF(مبيعات!$D:$D,'تكويد الأصناف'!E23,مبيعات!$E:$E)-SUMIF(آجل!$D:$D,'تكويد الأصناف'!E23,آجل!$E:$E) -> 95
B24: =IF(D24="","",B23+1) -> 19 | C24: =TODAY() -> 2017-11-14 | D24: 119 | E24: آلة حاسبة | F24: 85 | G24: 95 | H24: 30 | I24: =SUMIF(مشتريات!$D:$D,'تكويد الأصناف'!E24,مشتريات!$E:$E) -> 5 | J24: =SUMIF(مبيعات!$D:$D,'تكويد الأصناف'!E24,مبيعات!$E:$E)+SUMIF(آجل!$D:$D,'تكويد الأصناف'!E24,آجل!$E:$E) -> 2 | K24: =H24+SUMIF(مشتريات!$D:$D,'تكويد الأصناف'!E24,مشتريات!$E:$E)-SUMIF(مبيعات!$D:$D,'تكويد الأصناف'!E24,مبيعات!$E:$E)-SUMIF(آجل!$D:$D,'تكويد الأصناف'!E24,آجل!$E:$E) -> 33

Sheet إضافة صنف
B9: الرقم | C9: التاريخ | D9: كود الصنف | E9: اسم الصنف | F9: سعر الشراء | G9: سعر البيع | H9: رصيد أول المدة
B10: =IF(C10="","",1) -> 1 | C10: =IF(D10="","",TODAY()) -> 2017-11-14 | D10: =MAX('تكويد الأصناف'!D:D)+1 -> 120 | E10: حقيبة hb
B11: =IF(C11="","",B10+1) ->  | C11: =IF(D11="","",TODAY()) -> 
B12: =IF(C12="","",B11+1) -> 
B13: =IF(C13="","",B12+1) -> 

Sheet مبيعات
E2: دفتر المبيعات
B4: الرقم | C4: كود الصنف | D4: الصنف | E4: الكمية | F4: سعر الوحدة | G4: السعر الإجمالي | H4: رقم الفاتورة | I4: تاريخ الفاتورة | J4: اسم العميل | K4: العنوان
B5: =IF($C$5="","",1) -> 1 | C5: 101 | D5: كراسة | E5: 2 | F5: 1 | G5: 2 | H5: 1001 | I5: 2017-11-03 | J5: خيري علي الكموشي | K5: تاجوراء - سيدي خليفة
B6: =IF(D6="","",B5+1) -> 2 | C6: 102 | D6: كتاب الهدف | E6: 3 | F6: 12.5 | G6: 37.5 | H6: 1001 | I6: 2017-11-03 | J6: خيري علي الكموشي | K6: تاجوراء - سيدي خليفة
B7: =IF(D7="","",B6+1) -> 3 | C7: 105 | D7: علبة أدوات | E7: 5 | F7: 4.75 | G7: 23.75 | H7: 1001 | I7: 2017-11-03 | J7: خيري علي الكموشي | K7: تاجوراء - سيدي خليفة
B8: =IF(D8="","",B7+1) -> 4 | C8: 101 | D8: كراسة | E8: 10 | F8: 1 | G8: 10 | H8: 1002 | I8: 2017-11-03 | J8: g | K8: gg
B9: 5 | C9: 102 | D9: كتاب الهدف | E9: 15 | F9: 12.5 | G9: 187.5 | H9: 1002 | I9: 2017-11-03 | J9: g | K9: gg
B10: 6 | C10: 103 | D10: حقيبة باربي | E10: 16 | F10: 26.5 | G10: 424 | H10: 1002 | I10: 2017-11-03 | J10: g | K10: gg
B11: 7 | C11: 101 | D11: كراسة | E11: 20 | F11: 1 | G11: 20 | H11: 1003 | I11: 2017-11-04 | J11: خيري | K11: تاجوراء
B12: 8 | C12: 102 | D12: كتاب الهدف | E12: 10 | F12: 12.5 | G12: 125 | H12: 1003 | I12: 2017-11-04 | J12: خيري | K12: تاجوراء
B13: 9 | C13: 105 | D13: علبة أدوات | E13: 5 | F13: 4.75 | G13: 23.75 | H13: 1003 | I13: 2017-11-04 | J13: خيري | K13: تاجوراء
B14: 10 | C14: 108 | D14: ورق سحب | E14: 5 | F14: 28 | G14: 140 | H14: 1004 | I14: 2017-11-04 | J14: قق | K14: قق
B15: 11 | C15: 107 | D15: قلم رصاص | E15: 74 | F15: 0.5 | G15: 37 | H15: 1004 | I15: 2017-11-04 | J15: قق | K15: قق
B16: 12 | C16: 106 | D16: قلم حبر | E16: 68 | F16: 0.75 | G16: 51 | H16: 1004 | I16: 2017-11-04 | J16: قق | K16: قق
B17: 13 | C17: 105 | D17: علبة أدوات | E17: 5 | F17: 4.75 | G17: 23.75 | H17: 1004 | I17: 2017-11-04 | J17: قق | K17: قق
B18: 14 | C18: 104 | D18: حقيبة فلة | E18: 66 | F18: 38 | G18: 2508 | H18: 1004 | I18: 2017-11-04 | J18: قق | K18: قق
B19: 15 | C19: 114 | D19: خطاط | E19: 2 | F19: 1.25 | G19: 2.5 | H19: 1005 | I19: 2017-11-09 | J19: يصضثض | K19: صضثثصض
B20: 16 | C20: 115 | D20: ورقة اسم | E20: 25 | F20: 0.5 | G20: 12.5 | H20: 1006 | I20: 2017-11-09 | J20: بيب | K20: بيبي
B21: 17 | C21: 116 | D21: حقيبة 111 | E21: 2 | F21: 28 | G21: 56 | H21: 1007 | I21: 43048 | J21: ققق | K21: ققف
B22: 18 | C22: 118 | D22: حشو دباسة | E22: 50 | F22: 16 | G22: 800 | H22: 1008 | I22: 43049 | J22: يسشيش | K22: 1901-10-16
B23: 19 | C23: 119 | D23: آلة حاسبة | E23: 2 | F23: 95 | G23: 190 | H23: 1009 | I23: 43049 | J23: ثبصص | K23: ببثثب
B69: =IF(D69="","",B68+1) -> 
B133: =IF(D133="","",B132+1) -> 
B197: =IF(D197="","",B196+1) -> 
B261: =IF(D261="","",B260+1) -> 
B325: =IF(D325="","",B324+1) -> 
B389: =IF(D389="","",B388+1) -> 
B453: =IF(D453="","",B452+1) -> 
B517: =IF(D517="","",B516+1) -> 
B581: =IF(D581="","",B580+1) -> 
B645: =IF(D645="","",B644+1) -> 
B709: =IF(D709="","",B708+1) -> 
B773: =IF(D773="","",B772+1) -> 
B837: =IF(D837="","",B836+1) -> 
B901: =IF(D901="","",B900+1) -> 
B965: =IF(D965="","",B964+1) -> 

Sheet مشتريات
E2: دفتر المشتريات
B4: الرقم | C4: كود الصنف | D4: الصنف | E4: الكمية | F4: سعر الوحدة | G4: السعر الإجمالي | H4: رقم الفاتورة | I4: تاريخ الفاتورة | J4: اسم العميل | K4: العنوان
B5: =IF($C$5="","",1) -> 1 | C5: 101 | D5: كراسة | E5: 100 | F5: 1 | G5: 100 | H5: 105 | I5: 2017-11-03 | J5: خيري | K5: تاجوراء
B6: =IF(D6="","",B5+1) -> 2 | C6: 101 | D6: كراسة | E6: 75 | F6: 1 | G6: 75 | H6: 1254 | I6: 2017-11-04 | J6: محمد | K6: ثثصق
B7: =IF(D7="","",B6+1) -> 3 | C7: 101 | D7: كراسة | E7: 75 | F7: 1 | G7: 75 | H7: 1254 | I7: 2017-11-04 | J7: ققث | K7: قثقثق
B8: =IF(D8="","",B7+1) -> 4 | C8: 114 | D8: خطاط | E8: 6 | F8: 1.25 | G8: 7.5 | H8: 105 | I8: 2017-11-09 | J8: لبيل | K8: لبل
B9: =IF(D9="","",B8+1) -> 5 | C9: 114 | D9: خطاط | E9: 10 | F9: 1.25 | G9: 12.5 | H9: 105 | I9: 2017-11-09 | J9: ىلىلبب | K9: لبلل
B10: 6 | C10: 115 | D10: ورقة اسم | E10: 20 | F10: 0.5 | G10: 10 | H10: 105 | I10: 2017-11-09 | J10: ىلىلبب | K10: لبلل
B11: 7 | C11: 114 | D11: خطاط | E11: 15 | F11: 1.25 | G11: 18.75 | H11: 105 | I11: 2017-11-09 | J11: fgfg | K11: gdfg
B12: 8 | C12: 115 | D12: ورقة اسم | E12: 25 | F12: 0.5 | G12: 12.5 | H12: 105 | I12: 2017-11-09 | J12: fgfg | K12: gdfg
B13: 9 | C13: 119 | D13: آلة حاسبة | E13: 5 | F13: 95 | G13: 475 | H13: 1014 | I13: 2017-11-10 | J13: يشسيش | K13: سيي
D32: 0
B69: =IF(D69="","",B68+1) -> 
B133: =IF(D133="","",B132+1) -> 
B197: =IF(D197="","",B196+1) -> 
B261: =IF(D261="","",B260+1) -> 
B325: =IF(D325="","",B324+1) -> 
B389: =IF(D389="","",B388+1) -> 
B453: =IF(D453="","",B452+1) -> 
B517: =IF(D517="","",B516+1) -> 
B581: =IF(D581="","",B580+1) -> 
B645: =IF(D645="","",B644+1) -> 
B709: =IF(D709="","",B708+1) -> 
B773: =IF(D773="","",B772+1) -> 
B837: =IF(D837="","",B836+1) -> 
B901: =IF(D901="","",B900+1) -> 
B965: =IF(D965="","",B964+1) -> 

Sheet آجل
E2: دفتر الآجل
B4: الرقم | C4: كود الصنف | D4: الصنف | E4: الكمية | F4: سعر الوحدة | G4: السعر الإجمالي | H4: رقم الفاتورة | I4: تاريخ الفاتورة | J4: اسم العميل | K4: العنوان
B5: =IF($C$5="","",1) -> 1 | C5: 102 | D5: كتاب الهدف | E5: 5 | F5: 12.5 | G5: 62.5 | H5: 101 | I5: 2017-11-03 | J5: ;lhg | K5: fdsfdsdsf
B6: =IF(D6="","",B5+1) -> 2 | C6: 101 | D6: كراسة | E6: 402 | F6: 1 | G6: 402 | H6: 102 | I6: 2017-11-04 | J6: فقغق | K6: اع
B7: =IF(D7="","",B6+1) -> 
B8: =IF(D8="","",B7+1) -> 
B9: =IF(D9="","",B8+1) -> 
D32: 0
B69: =IF(D69="","",B68+1) -> 
B133: =IF(D133="","",B132+1) -> 
B197: =IF(D197="","",B196+1) -> 
B261: =IF(D261="","",B260+1) -> 
B325: =IF(D325="","",B324+1) -> 
B389: =IF(D389="","",B388+1) -> 
B453: =IF(D453="","",B452+1) -> 
B517: =IF(D517="","",B516+1) -> 
B581: =IF(D581="","",B580+1) -> 
B645: =IF(D645="","",B644+1) -> 
B709: =IF(D709="","",B708+1) -> 
B773: =IF(D773="","",B772+1) -> 
B837: =IF(D837="","",B836+1) -> 
B901: =IF(D901="","",B900+1) -> 
B965: =IF(D965="","",B964+1) -> 
